[Event "*** Titled Tuesday Blitz"]
[Site "Chess.com"]
[Date "2018.04.03"]
[Round "5"]
[White "guillembaches"]
[Black "dolynachess"]
[Result "0-1"]
[WhiteElo "2231"]
[BlackElo "2402"]
[TimeControl "180+2"]
[EndTime "14:06:43 PDT"]
[Termination "dolynachess won on time"]

1. d4 {[%clk 0:03:01.9]} 1... Nf6 {[%clk 0:03:00.3]} 2. Bf4 {[%clk 0:03:02.3]}
2... c5 {[%clk 0:03:02.2]} 3. d5 {[%clk 0:02:55.1]} 3... d6 {[%clk 0:03:02.9]}
4. Nc3 {[%clk 0:02:55]} 4... g6 {[%clk 0:03:04.1]} 5. e4 {[%clk 0:02:55.3]} 5...
Bg7 {[%clk 0:03:05.6]} 6. Qd2 {[%clk 0:02:55.1]} 6... O-O {[%clk 0:03:05.8]} 7.
Bh6 {[%clk 0:02:55.9]} 7... Bxh6 {[%clk 0:02:47.4]} 8. Qxh6 {[%clk 0:02:56]}
8... b5 {[%clk 0:02:48.1]} 9. Bxb5 {[%clk 0:02:46.3]} 9... Qb6 {[%clk
0:02:35.2]} 10. O-O-O {[%clk 0:02:36.1]} 10... Nbd7 {[%clk 0:02:22.3]} 11. b3
{[%clk 0:02:04.5]} 11... Nxe4 {[%clk 0:01:53.4]} 12. Nxe4 {[%clk 0:01:57.8]}
12... Qxb5 {[%clk 0:01:54.5]} 13. Nf3 {[%clk 0:01:58.6]} 13... f6 {[%clk
0:01:20.1]} 14. h4 {[%clk 0:01:45.9]} 14... Qb4 {[%clk 0:01:19.6]} 15. Rhe1
{[%clk 0:01:33.4]} 15... a5 {[%clk 0:01:18.5]} 16. h5 {[%clk 0:01:31.3]} 16...
g5 {[%clk 0:01:19]} 17. Nexg5 {[%clk 0:01:24]} 17... Qf4+ {[%clk 0:01:11.9]} 18.
Kb1 {[%clk 0:01:16.1]} 18... fxg5 {[%clk 0:01:11.1]} 19. Nxg5 {[%clk 0:01:06.7]}
19... Rf7 {[%clk 0:00:58.5]} 20. Nxf7 {[%clk 0:01:00.6]} 20... Qxf7 {[%clk
0:00:58.6]} 21. Rd3 {[%clk 0:00:54.2]} 21... Nf6 {[%clk 0:00:55.3]} 22. g4
{[%clk 0:00:43]} 22... Bxg4 {[%clk 0:00:48.1]} 23. Rg3 {[%clk 0:00:37.8]} 23...
Kh8 {[%clk 0:00:47.9]} 24. Reg1 {[%clk 0:00:28]} 24... Rg8 {[%clk 0:00:47.5]}
25. Qf4 {[%clk 0:00:22.2]} 25... Qxh5 {[%clk 0:00:35.3]} 26. f3 {[%clk
0:00:13.9]} 26... Bf5 {[%clk 0:00:35.8]} 27. Rg5 {[%clk 0:00:13.9]} 27... Rxg5
{[%clk 0:00:26.7]} 28. Rxg5 {[%clk 0:00:15.3]} 28... Qh1+ {[%clk 0:00:27.5]} 29.
Kb2 {[%clk 0:00:16.7]} 29... Bg6 {[%clk 0:00:26.7]} 30. Qe3 {[%clk 0:00:16.4]}
30... Qd1 {[%clk 0:00:24]} 31. Qc3 {[%clk 0:00:16.4]} 31... Kg7 {[%clk
0:00:18.8]} 32. f4 {[%clk 0:00:17.3]} 32... Kf7 {[%clk 0:00:16.1]} 33. f5 {[%clk
0:00:18.4]} 33... Bh5 {[%clk 0:00:17.4]} 34. Qe3 {[%clk 0:00:16.7]} 34... Qxd5
{[%clk 0:00:17.6]} 35. c4 {[%clk 0:00:15.3]} 35... Qd4+ {[%clk 0:00:15.6]} 36.
Qxd4 {[%clk 0:00:15.7]} 36... cxd4 {[%clk 0:00:17.5]} 37. a3 {[%clk 0:00:16]}
37... Be2 {[%clk 0:00:18.1]} 38. Kc2 {[%clk 0:00:16.2]} 38... d3+ {[%clk
0:00:17.5]} 39. Kb2 {[%clk 0:00:16.6]} 39... d2 {[%clk 0:00:18.1]} 0-1

[Event "*** Titled Tuesday Blitz"]
[Site "Chess.com"]
[Date "2018.04.03"]
[Round "5"]
[White "LawrenceTrent"]
[Black "ckgchess"]
[Result "1-0"]
[WhiteElo "2538"]
[BlackElo "2510"]
[TimeControl "180+2"]
[EndTime "14:06:47 PDT"]
[Termination "LawrenceTrent won by resignation"]

1. d4 {[%clk 0:03:01.9]} 1... Nf6 {[%clk 0:03:00.5]} 2. Bg5 {[%clk 0:03:03.1]}
2... d5 {[%clk 0:03:01.2]} 3. e3 {[%clk 0:03:01.6]} 3... g6 {[%clk 0:03:01.8]}
4. Bxf6 {[%clk 0:03:00.7]} 4... exf6 {[%clk 0:03:03.7]} 5. g3 {[%clk 0:03:01.8]}
5... Bg7 {[%clk 0:03:04.4]} 6. Bg2 {[%clk 0:03:02.8]} 6... O-O {[%clk
0:03:05.1]} 7. Ne2 {[%clk 0:03:04.2]} 7... f5 {[%clk 0:03:02.5]} 8. O-O {[%clk
0:03:05]} 8... h5 {[%clk 0:03:03.1]} 9. Nd2 {[%clk 0:03:02.1]} 9... h4 {[%clk
0:03:01.3]} 10. c4 {[%clk 0:03:03]} 10... dxc4 {[%clk 0:03:00.9]} 11. Nxc4
{[%clk 0:03:04.1]} 11... c6 {[%clk 0:03:00.9]} 12. Nc3 {[%clk 0:03:01.7]} 12...
Be6 {[%clk 0:03:00.1]} 13. Qe2 {[%clk 0:03:00.3]} 13... Na6 {[%clk 0:02:28]} 14.
Rfd1 {[%clk 0:02:53.3]} 14... Nc7 {[%clk 0:02:27.4]} 15. Na5 {[%clk 0:02:48.3]}
15... Rb8 {[%clk 0:02:22.8]} 16. b4 {[%clk 0:02:48.6]} 16... a6 {[%clk
0:02:05.9]} 17. Rac1 {[%clk 0:02:45.4]} 17... Re8 {[%clk 0:01:59.8]} 18. Na4
{[%clk 0:02:41.9]} 18... Bd5 {[%clk 0:01:47.5]} 19. Nc5 {[%clk 0:02:24.9]} 19...
Bxg2 {[%clk 0:01:46]} 20. Kxg2 {[%clk 0:02:05.9]} 20... b6 {[%clk 0:01:01.4]}
21. Nxc6 {[%clk 0:02:06.3]} 21... Qd5+ {[%clk 0:01:01.3]} 22. Kg1 {[%clk
0:02:07.3]} 22... bxc5 {[%clk 0:00:28.8]} 23. Nxb8 {[%clk 0:01:59.3]} 23... Rxb8
{[%clk 0:00:22.6]} 24. dxc5 {[%clk 0:02:00.5]} 24... Qe4 {[%clk 0:00:21]} 25.
Rc4 {[%clk 0:02:01.1]} 25... Qa8 {[%clk 0:00:17.7]} 26. Rxh4 {[%clk 0:02:01.9]}
26... Ne6 {[%clk 0:00:16.7]} 27. a3 {[%clk 0:02:00.3]} 27... Rc8 {[%clk
0:00:17.5]} 28. Rf1 {[%clk 0:01:10.3]} 28... Ng5 {[%clk 0:00:17]} 29. f3 {[%clk
0:01:11.6]} 29... Re8 {[%clk 0:00:17.8]} 30. Rc4 {[%clk 0:01:07.9]} 30... Qc6
{[%clk 0:00:16.3]} 31. h4 {[%clk 0:01:06.5]} 31... Ne6 {[%clk 0:00:16.2]} 32.
Rd1 {[%clk 0:01:06.5]} 32... Bh6 {[%clk 0:00:12.4]} 33. Rd6 {[%clk 0:01:02.9]}
33... Qc7 {[%clk 0:00:13.4]} 34. f4 {[%clk 0:01:02.1]} 34... Nd8 {[%clk
0:00:06.2]} 35. Qf3 {[%clk 0:01:00.6]} 35... Bf8 {[%clk 0:00:07]} 36. Rxa6
{[%clk 0:01:01.3]} 36... Qd7 {[%clk 0:00:06.8]} 37. Rd4 {[%clk 0:01:00.5]} 37...
Qb5 {[%clk 0:00:07.9]} 38. Qf1 {[%clk 0:01:00.7]} 38... Qb8 {[%clk 0:00:07.8]}
39. Kf2 {[%clk 0:00:58.6]} 39... Ne6 {[%clk 0:00:09.1]} 40. Rd7 {[%clk
0:00:58.7]} 40... Qc8 {[%clk 0:00:09.3]} 41. Raa7 {[%clk 0:00:57.5]} 41... Nd8
{[%clk 0:00:10.7]} 42. Qc4 {[%clk 0:00:57.4]} 42... Re6 {[%clk 0:00:10.5]} 43.
Qd5 {[%clk 0:00:55.9]} 43... Nc6 {[%clk 0:00:10.9]} 44. Rac7 {[%clk 0:00:55]}
44... Qe8 {[%clk 0:00:08.4]} 45. Rxc6 {[%clk 0:00:50.7]} 45... Rxe3 {[%clk
0:00:09.4]} 46. Rxg6+ {[%clk 0:00:50.3]} 46... Kh8 {[%clk 0:00:10.9]} 47. Qd4+
{[%clk 0:00:47]} 47... Kh7 {[%clk 0:00:08.8]} 48. Qxe3 {[%clk 0:00:47.6]} 1-0

[Event "*** Titled Tuesday Blitz"]
[Site "Chess.com"]
[Date "2018.04.03"]
[Round "5"]
[White "2Tilted"]
[Black "Vadim_Biliy"]
[Result "0-1"]
[WhiteElo "2255"]
[BlackElo "2127"]
[TimeControl "180+2"]
[EndTime "14:07:06 PDT"]
[Termination "Vadim_Biliy won by resignation"]

1. d4 {[%clk 0:03:01.9]} 1... d5 {[%clk 0:02:59.8]} 2. c4 {[%clk 0:03:02.3]}
2... e6 {[%clk 0:02:59.5]} 3. Nf3 {[%clk 0:03:02.9]} 3... Nf6 {[%clk 0:03:00]}
4. g3 {[%clk 0:03:03.4]} 4... Be7 {[%clk 0:03:00.8]} 5. Bg2 {[%clk 0:03:03]}
5... O-O {[%clk 0:03:01.3]} 6. O-O {[%clk 0:03:03.5]} 6... a6 {[%clk 0:03:01.1]}
7. Qc2 {[%clk 0:02:34.7]} 7... Nc6 {[%clk 0:02:57.8]} 8. Rd1 {[%clk 0:02:31]}
8... Nb4 {[%clk 0:02:50.1]} 9. Qb3 {[%clk 0:02:30.9]} 9... dxc4 {[%clk
0:02:49.1]} 10. Qxc4 {[%clk 0:02:32.8]} 10... Nbd5 {[%clk 0:02:47.4]} 11. a4
{[%clk 0:02:30.4]} 11... b5 {[%clk 0:02:43.8]} 12. Qc6 {[%clk 0:02:23]} 12...
Bd7 {[%clk 0:02:29.1]} 13. Qc2 {[%clk 0:02:21.2]} 13... bxa4 {[%clk 0:02:26.3]}
14. Nc3 {[%clk 0:02:18.1]} 14... Nxc3 {[%clk 0:02:21.1]} 15. bxc3 {[%clk
0:02:10.6]} 15... Bc6 {[%clk 0:02:17.4]} 16. Ne5 {[%clk 0:02:06.6]} 16... Bxg2
{[%clk 0:02:17.3]} 17. Kxg2 {[%clk 0:02:08.5]} 17... c5 {[%clk 0:02:08.2]} 18.
Qxa4 {[%clk 0:02:00.6]} 18... Qd5+ {[%clk 0:01:59.1]} 19. f3 {[%clk 0:01:59.4]}
19... cxd4 {[%clk 0:01:58]} 20. cxd4 {[%clk 0:01:57.6]} 20... Qb5 {[%clk
0:01:55.2]} 21. Ra2 {[%clk 0:01:23.4]} 21... Nd5 {[%clk 0:01:49.4]} 22. Qxb5
{[%clk 0:01:21.7]} 22... axb5 {[%clk 0:01:48.9]} 23. Rxa8 {[%clk 0:01:21.8]}
23... Rxa8 {[%clk 0:01:48.3]} 24. e4 {[%clk 0:01:04.1]} 24... Nc3 {[%clk
0:01:47.6]} 25. Rd2 {[%clk 0:01:03.3]} 25... b4 {[%clk 0:01:46.6]} 26. Bb2
{[%clk 0:00:58]} 26... f6 {[%clk 0:01:39]} 27. Nc6 {[%clk 0:00:58.2]} 27... Bf8
{[%clk 0:01:39.2]} 28. Rc2 {[%clk 0:00:57.2]} 28... Nd1 {[%clk 0:01:31.7]} 29.
Rd2 {[%clk 0:00:41.8]} 29... Ra2 {[%clk 0:01:29.7]} 30. Rxd1 {[%clk 0:00:38.6]}
30... Rxb2+ {[%clk 0:01:30.4]} 31. Kh3 {[%clk 0:00:40.1]} 31... b3 {[%clk
0:01:27.5]} 32. Na5 {[%clk 0:00:26.5]} 32... Bb4 {[%clk 0:01:24.8]} 33. Nc4
{[%clk 0:00:27.6]} 33... Rc2 {[%clk 0:01:20.2]} 34. Nb6 {[%clk 0:00:26.2]} 34...
b2 {[%clk 0:01:19.1]} 35. Rb1 {[%clk 0:00:27.2]} 35... Bc3 {[%clk 0:01:17.8]}
36. Na4 {[%clk 0:00:27.8]} 36... Bxd4 {[%clk 0:01:18.3]} 37. Rd1 {[%clk
0:00:22.8]} 37... e5 {[%clk 0:01:16.2]} 38. Rb1 {[%clk 0:00:22.6]} 38... Rc1
{[%clk 0:01:15.5]} 39. Rxb2 {[%clk 0:00:24]} 39... Bxb2 {[%clk 0:01:14.8]} 40.
Nxb2 {[%clk 0:00:25.9]} 40... Rc3 {[%clk 0:01:14.2]} 41. Nd1 {[%clk 0:00:26.8]}
41... Rb3 {[%clk 0:01:12.6]} 42. Nf2 {[%clk 0:00:27.9]} 42... h5 {[%clk
0:01:11.5]} 43. Kg2 {[%clk 0:00:27]} 43... Kf7 {[%clk 0:01:08.4]} 44. h4 {[%clk
0:00:27.1]} 44... g5 {[%clk 0:01:07]} 45. hxg5 {[%clk 0:00:22.6]} 45... fxg5
{[%clk 0:01:07.1]} 46. Nd1 {[%clk 0:00:19]} 46... Rd3 {[%clk 0:01:05]} 47. Nf2
{[%clk 0:00:20.2]} 47... Rd2 {[%clk 0:01:05.5]} 48. Kf1 {[%clk 0:00:21.7]} 48...
Kg6 {[%clk 0:00:58.8]} 49. Ke1 {[%clk 0:00:22.9]} 49... Ra2 {[%clk 0:00:56.2]}
50. Kf1 {[%clk 0:00:24.5]} 50... h4 {[%clk 0:00:54.5]} 51. gxh4 {[%clk
0:00:26.4]} 51... gxh4 {[%clk 0:00:55.1]} 52. Ng4 {[%clk 0:00:27.8]} 52... Kg5
{[%clk 0:00:51.6]} 53. Nxe5 {[%clk 0:00:29.1]} 53... Kf4 {[%clk 0:00:52.2]} 54.
Nd3+ {[%clk 0:00:25.6]} 54... Kxf3 {[%clk 0:00:51.1]} 55. e5 {[%clk 0:00:27.2]}
55... h3 {[%clk 0:00:43.1]} 56. Kg1 {[%clk 0:00:27]} 56... h2+ {[%clk
0:00:41.3]} 57. Kh1 {[%clk 0:00:27.5]} 57... Kg3 {[%clk 0:00:42]} 0-1

[Event "*** Titled Tuesday Blitz"]
[Site "Chess.com"]
[Date "2018.04.03"]
[Round "5"]
[White "Ravan_02"]
[Black "SamCopeland"]
[Result "1-0"]
[WhiteElo "2462"]
[BlackElo "2019"]
[TimeControl "180+2"]
[EndTime "14:07:10 PDT"]
[Termination "Ravan_02 won by resignation"]

1. Nf3 {[%clk 0:03:01.9]} 1... f5 {[%clk 0:02:59.6]} 2. g3 {[%clk 0:03:03.8]}
2... Nf6 {[%clk 0:02:55]} 3. Bg2 {[%clk 0:03:05.7]} 3... g6 {[%clk 0:02:56.2]}
4. O-O {[%clk 0:03:04.6]} 4... Bg7 {[%clk 0:02:57.4]} 5. c4 {[%clk 0:03:03.5]}
5... O-O {[%clk 0:02:58.2]} 6. Nc3 {[%clk 0:03:04]} 6... d6 {[%clk 0:02:59.2]}
7. d4 {[%clk 0:03:05.2]} 7... Qe8 {[%clk 0:02:59.2]} 8. b3 {[%clk 0:03:01.8]}
8... a5 {[%clk 0:02:03.6]} 9. Bb2 {[%clk 0:03:00.5]} 9... Na6 {[%clk 0:02:03.2]}
10. Rc1 {[%clk 0:02:52.5]} 10... Bd7 {[%clk 0:02:00]} 11. Nd2 {[%clk 0:02:33.9]}
11... c6 {[%clk 0:01:54.9]} 12. e4 {[%clk 0:02:34.3]} 12... fxe4 {[%clk
0:01:51.9]} 13. Ndxe4 {[%clk 0:02:36.2]} 13... Nxe4 {[%clk 0:01:50.6]} 14. Nxe4
{[%clk 0:02:38.1]} 14... Nc7 {[%clk 0:01:31.9]} 15. Re1 {[%clk 0:02:38]} 15...
Qf7 {[%clk 0:01:29.7]} 16. f4 {[%clk 0:02:32.6]} 16... h6 {[%clk 0:01:28]} 17.
Kh1 {[%clk 0:02:32.5]} 17... a4 {[%clk 0:00:57.5]} 18. Qd2 {[%clk 0:02:29.1]}
18... axb3 {[%clk 0:00:56]} 19. axb3 {[%clk 0:02:30.3]} 19... Ra2 {[%clk
0:00:55.3]} 20. Ra1 {[%clk 0:02:31.8]} 20... Rfa8 {[%clk 0:00:54.5]} 21. Rxa2
{[%clk 0:02:31.8]} 21... Rxa2 {[%clk 0:00:55.1]} 22. Ra1 {[%clk 0:02:33.2]}
22... Rxa1+ {[%clk 0:00:56.3]} 23. Bxa1 {[%clk 0:02:33.3]} 23... c5 {[%clk
0:00:32.1]} 24. Bc3 {[%clk 0:02:33.8]} 24... cxd4 {[%clk 0:00:22.4]} 25. Bxd4
{[%clk 0:02:34]} 25... Bc6 {[%clk 0:00:23.3]} 26. Bxg7 {[%clk 0:02:13.4]} 26...
Qxg7 {[%clk 0:00:19.9]} 27. Nc3 {[%clk 0:02:14.6]} 27... Bxg2+ {[%clk
0:00:18.7]} 28. Kxg2 {[%clk 0:02:16.5]} 28... Kh7 {[%clk 0:00:13.9]} 29. Qe3
{[%clk 0:02:05.9]} 29... Qf6 {[%clk 0:00:11.8]} 30. b4 {[%clk 0:01:59.1]} 30...
Ne6 {[%clk 0:00:09.6]} 31. c5 {[%clk 0:01:38.8]} 31... dxc5 {[%clk 0:00:04.8]}
32. bxc5 {[%clk 0:01:40.7]} 32... Qf5 {[%clk 0:00:05.8]} 33. Ne4 {[%clk
0:01:30.2]} 33... Qd5 {[%clk 0:00:06.4]} 34. Kf2 {[%clk 0:01:20]} 34... Qd4
{[%clk 0:00:06.1]} 35. Qxd4 {[%clk 0:01:20.4]} 35... Nxd4 {[%clk 0:00:08]} 36.
Ke3 {[%clk 0:01:21.8]} 36... Ne6 {[%clk 0:00:08.3]} 37. Kd3 {[%clk 0:01:22]}
37... Kg7 {[%clk 0:00:08.8]} 38. Kc4 {[%clk 0:01:22.4]} 38... g5 {[%clk
0:00:09.2]} 39. f5 {[%clk 0:01:22.1]} 39... Nc7 {[%clk 0:00:08.9]} 40. g4 {[%clk
0:01:17.2]} 40... e6 {[%clk 0:00:09.5]} 41. Nd6 {[%clk 0:01:03.5]} 41... exf5
{[%clk 0:00:08.6]} 42. Nxf5+ {[%clk 0:01:04.4]} 42... Kf6 {[%clk 0:00:07.9]} 43.
Nxh6 {[%clk 0:00:52.3]} 43... Ke5 {[%clk 0:00:07.8]} 44. Nf7+ {[%clk 0:00:52.8]}
44... Kf4 {[%clk 0:00:08.5]} 45. h3 {[%clk 0:00:52.6]} 45... Kg3 {[%clk
0:00:06.6]} 46. Nxg5 {[%clk 0:00:52.8]} 46... Kh4 {[%clk 0:00:04.2]} 47. Nf7
{[%clk 0:00:53.1]} 47... Kxh3 {[%clk 0:00:03.7]} 48. g5 {[%clk 0:00:53.8]} 48...
Kg4 {[%clk 0:00:03.6]} 49. g6 {[%clk 0:00:52]} 49... Ne6 {[%clk 0:00:05.1]} 50.
Nd8 {[%clk 0:00:53]} 50... Ng7 {[%clk 0:00:02.8]} 51. Nxb7 {[%clk 0:00:53.8]}
51... Kf5 {[%clk 0:00:04.1]} 52. c6 {[%clk 0:00:51]} 52... Ne8 {[%clk
0:00:04.2]} 53. g7 {[%clk 0:00:49.3]} 53... Nxg7 {[%clk 0:00:04]} 54. c7 {[%clk
0:00:50.3]} 54... Ne8 {[%clk 0:00:04.9]} 55. c8=Q+ {[%clk 0:00:50.4]} 55... Kf4
{[%clk 0:00:05.6]} 56. Qxe8 {[%clk 0:00:51.2]} 1-0

[Event "*** Titled Tuesday Blitz"]
[Site "Chess.com"]
[Date "2018.04.03"]
[Round "5"]
[White "spidernv"]
[Black "FMAntonio"]
[Result "0-1"]
[WhiteElo "2337"]
[BlackElo "2382"]
[TimeControl "180+2"]
[EndTime "14:07:14 PDT"]
[Termination "FMAntonio won by resignation"]

1. e4 {[%clk 0:03:00.6]} 1... e6 {[%clk 0:03:00.9]} 2. d4 {[%clk 0:03:01.3]}
2... d5 {[%clk 0:03:02.3]} 3. exd5 {[%clk 0:03:02.5]} 3... exd5 {[%clk
0:03:03.2]} 4. c3 {[%clk 0:03:04.1]} 4... Nf6 {[%clk 0:03:02.4]} 5. Nf3 {[%clk
0:03:05.8]} 5... Bd6 {[%clk 0:03:02.6]} 6. Bd3 {[%clk 0:03:07.2]} 6... O-O
{[%clk 0:03:03]} 7. O-O {[%clk 0:03:08.6]} 7... Bg4 {[%clk 0:02:58.4]} 8. Bg5
{[%clk 0:03:09.7]} 8... h6 {[%clk 0:02:58.7]} 9. Bh4 {[%clk 0:03:07]} 9... Nbd7
{[%clk 0:02:58.8]} 10. Nbd2 {[%clk 0:03:07.8]} 10... c6 {[%clk 0:02:43.6]} 11.
Qe1 {[%clk 0:03:07.4]} 11... Re8 {[%clk 0:02:42.9]} 12. Qb1 {[%clk 0:03:06.6]}
12... Qc7 {[%clk 0:02:38.3]} 13. Re1 {[%clk 0:03:07.7]} 13... Nh5 {[%clk
0:02:21.2]} 14. Bg3 {[%clk 0:03:07.4]} 14... Nxg3 {[%clk 0:02:20.2]} 15. hxg3
{[%clk 0:03:08.5]} 15... Nf6 {[%clk 0:02:18.1]} 16. Qc2 {[%clk 0:03:09.2]} 16...
b6 {[%clk 0:02:16.3]} 17. Nf1 {[%clk 0:03:09.3]} 17... c5 {[%clk 0:02:07.6]} 18.
dxc5 {[%clk 0:03:08.8]} 18... bxc5 {[%clk 0:02:08.2]} 19. Ne3 {[%clk 0:03:10.2]}
19... Be6 {[%clk 0:02:09]} 20. Bf5 {[%clk 0:03:10.1]} 20... Bf8 {[%clk
0:02:05.4]} 21. Rad1 {[%clk 0:03:09.9]} 21... Rad8 {[%clk 0:02:05.7]} 22. Bxe6
{[%clk 0:03:09.4]} 22... Rxe6 {[%clk 0:02:06]} 23. Nf5 {[%clk 0:03:06.6]} 23...
Rde8 {[%clk 0:02:06]} 24. Rxe6 {[%clk 0:03:06.2]} 24... Rxe6 {[%clk 0:02:07]}
25. Ne3 {[%clk 0:03:07.5]} 25... Qb7 {[%clk 0:02:06.1]} 26. Qb3 {[%clk
0:03:07.4]} 26... Rb6 {[%clk 0:02:07]} 27. Qa3 {[%clk 0:03:02.7]} 27... Rb5
{[%clk 0:02:03]} 28. b3 {[%clk 0:02:54.2]} 28... d4 {[%clk 0:01:59.9]} 29. Nc4
{[%clk 0:02:53]} 29... dxc3 {[%clk 0:01:58.6]} 30. Qc1 {[%clk 0:02:54.2]} 30...
Ne4 {[%clk 0:01:51.7]} 31. Qc2 {[%clk 0:02:49.6]} 31... Qe7 {[%clk 0:01:47.2]}
32. Re1 {[%clk 0:02:45.5]} 32... f5 {[%clk 0:01:48.2]} 33. g4 {[%clk 0:02:45.7]}
33... Qf6 {[%clk 0:01:20.9]} 34. gxf5 {[%clk 0:02:42.5]} 34... Nd6 {[%clk
0:01:18.1]} 35. Re6 {[%clk 0:02:41.5]} 35... Qxf5 {[%clk 0:01:18.7]} 36. Qxf5
{[%clk 0:02:26.7]} 36... Nxf5 {[%clk 0:01:19.3]} 37. Ne1 {[%clk 0:02:19]} 37...
Rb8 {[%clk 0:01:10]} 38. Kf1 {[%clk 0:02:17]} 38... Rd8 {[%clk 0:01:09]} 39. g4
{[%clk 0:02:17.2]} 39... Rd1 {[%clk 0:00:12.9]} 40. Ke2 {[%clk 0:02:16]} 40...
Nd4+ {[%clk 0:00:13.5]} 41. Kxd1 {[%clk 0:02:15.5]} 41... Nxe6 {[%clk
0:00:15.4]} 42. Kc2 {[%clk 0:02:15.6]} 42... g6 {[%clk 0:00:16.3]} 43. Kxc3
{[%clk 0:02:15.7]} 43... h5 {[%clk 0:00:17.6]} 44. f3 {[%clk 0:02:14.1]} 44...
h4 {[%clk 0:00:17.9]} 45. Nd3 {[%clk 0:02:10]} 45... Bg7+ {[%clk 0:00:17.1]} 46.
Kd2 {[%clk 0:02:06.1]} 46... Bd4 {[%clk 0:00:18]} 47. Ne3 {[%clk 0:02:06.3]}
47... h3 {[%clk 0:00:16.2]} 48. Nf2 {[%clk 0:02:06.7]} 48... h2 {[%clk 0:00:17]}
49. Nh1 {[%clk 0:02:08]} 49... Nf4 {[%clk 0:00:14.7]} 50. Nf1 {[%clk 0:02:08.4]}
50... Bg1 {[%clk 0:00:15.8]} 51. a3 {[%clk 0:01:57.4]} 51... Kf7 {[%clk
0:00:16.5]} 52. Nfg3 {[%clk 0:01:56.9]} 52... Ke6 {[%clk 0:00:15.8]} 53. Ne4
{[%clk 0:01:57.6]} 53... Kd5 {[%clk 0:00:16.3]} 54. Kc3 {[%clk 0:01:56.8]} 54...
Ne2+ {[%clk 0:00:09.4]} 55. Kd3 {[%clk 0:01:54.5]} 55... Nd4 {[%clk 0:00:10.5]}
56. Nc3+ {[%clk 0:01:55.7]} 56... Ke5 {[%clk 0:00:10.2]} 57. Ne2 {[%clk
0:01:46.3]} 57... Nxf3 {[%clk 0:00:07.6]} 58. Kc4 {[%clk 0:01:45.5]} 58... Nd2+
{[%clk 0:00:08.6]} 59. Kc3 {[%clk 0:01:44.4]} 59... Ne4+ {[%clk 0:00:09.8]} 60.
Kd3 {[%clk 0:01:44.7]} 60... g5 {[%clk 0:00:10.2]} 61. Neg3 {[%clk 0:01:40]}
61... Nf6 {[%clk 0:00:10.1]} 62. Ne4 {[%clk 0:01:37.1]} 62... Nxe4 {[%clk
0:00:10.1]} 0-1

[Event "*** Titled Tuesday Blitz"]
[Site "Chess.com"]
[Date "2018.04.03"]
[Round "5"]
[White "Orest_Vovk"]
[Black "Chesscoach_Golichenko"]
[Result "0-1"]
[WhiteElo "2365"]
[BlackElo "2503"]
[TimeControl "180+2"]
[EndTime "14:07:41 PDT"]
[Termination "Chesscoach_Golichenko won by resignation"]

1. g4 {[%clk 0:02:40.8]} 1... d5 {[%clk 0:02:59.5]} 2. h3 {[%clk 0:02:40.6]}
2... c6 {[%clk 0:02:59.3]} 3. Bg2 {[%clk 0:02:41.8]} 3... h5 {[%clk 0:02:59.8]}
4. g5 {[%clk 0:02:42.1]} 4... e5 {[%clk 0:03:00.5]} 5. d4 {[%clk 0:02:40.7]}
5... e4 {[%clk 0:02:57.3]} 6. c4 {[%clk 0:02:41.3]} 6... Be7 {[%clk 0:02:52.2]}
7. h4 {[%clk 0:02:36.4]} 7... f6 {[%clk 0:02:51.6]} 8. Nc3 {[%clk 0:02:32]} 8...
fxg5 {[%clk 0:02:47.7]} 9. cxd5 {[%clk 0:02:32.5]} 9... cxd5 {[%clk 0:02:45.9]}
10. Qb3 {[%clk 0:02:32.7]} 10... Nc6 {[%clk 0:02:32.8]} 11. Qxd5 {[%clk
0:02:04.8]} 11... Nxd4 {[%clk 0:02:20.4]} 12. Bxe4 {[%clk 0:01:55.9]} 12... Be6
{[%clk 0:02:11.9]} 13. Bg6+ {[%clk 0:01:40.2]} 13... Kf8 {[%clk 0:02:11.7]} 14.
Qxd8+ {[%clk 0:01:37.2]} 14... Rxd8 {[%clk 0:02:10.3]} 15. hxg5 {[%clk
0:01:38.4]} 15... Bb4 {[%clk 0:02:05.2]} 16. Rh4 {[%clk 0:01:22.8]} 16... Ne7
{[%clk 0:02:02]} 17. Be4 {[%clk 0:00:48.8]} 17... Nef5 {[%clk 0:01:52.4]} 18.
Rh1 {[%clk 0:00:42.5]} 18... Nd6 {[%clk 0:01:46.1]} 19. Bg6 {[%clk 0:00:32.5]}
19... Bf5 {[%clk 0:01:44.4]} 20. Bxf5 {[%clk 0:00:32.5]} 20... N6xf5 {[%clk
0:01:46.3]} 21. Kf1 {[%clk 0:00:27.7]} 21... Kf7 {[%clk 0:01:01]} 22. Bf4 {[%clk
0:00:26.7]} 22... Kg6 {[%clk 0:00:57.9]} 23. e3 {[%clk 0:00:24.8]} 23... Ne6
{[%clk 0:00:54.9]} 24. Nf3 {[%clk 0:00:20.2]} 24... Nxf4 {[%clk 0:00:51.6]} 25.
exf4 {[%clk 0:00:22.1]} 25... Bd6 {[%clk 0:00:50.6]} 26. Ne2 {[%clk 0:00:21.4]}
26... Rhe8 {[%clk 0:00:50]} 27. Re1 {[%clk 0:00:16.4]} 27... Re4 {[%clk
0:00:47.5]} 28. Nh4+ {[%clk 0:00:15.7]} 28... Nxh4 {[%clk 0:00:46.7]} 29. Rxh4
{[%clk 0:00:17.6]} 29... Rde8 {[%clk 0:00:46.5]} 30. a3 {[%clk 0:00:09.9]} 30...
Bc5 {[%clk 0:00:36.5]} 31. f5+ {[%clk 0:00:07.8]} 31... Kxg5 {[%clk 0:00:34.4]}
32. Rxe4 {[%clk 0:00:08.3]} 32... Rxe4 {[%clk 0:00:36.3]} 33. Rc1 {[%clk
0:00:09.1]} 33... b6 {[%clk 0:00:33.1]} 34. b4 {[%clk 0:00:09.6]} 34... Bd6
{[%clk 0:00:29.2]} 35. Rc6 {[%clk 0:00:10.3]} 35... Be5 {[%clk 0:00:29.6]} 36.
Ng3 {[%clk 0:00:08.2]} 36... Bxg3 {[%clk 0:00:22.5]} 37. fxg3 {[%clk 0:00:10.1]}
37... Re7 {[%clk 0:00:21.2]} 38. f6 {[%clk 0:00:08.8]} 38... gxf6 {[%clk
0:00:21.5]} 39. Kf2 {[%clk 0:00:10.4]} 39... Rd7 {[%clk 0:00:19.7]} 40. Rc3
{[%clk 0:00:10.4]} 40... Rd2+ {[%clk 0:00:18.5]} 41. Kf3 {[%clk 0:00:11.5]}
41... f5 {[%clk 0:00:18.9]} 42. Re3 {[%clk 0:00:11.6]} 42... Ra2 {[%clk
0:00:17.4]} 43. Rd3 {[%clk 0:00:12.3]} 43... a5 {[%clk 0:00:17.4]} 44. bxa5
{[%clk 0:00:12.7]} 44... bxa5 {[%clk 0:00:19.3]} 45. Rc3 {[%clk 0:00:10.7]}
45... a4 {[%clk 0:00:20.3]} 46. Rd3 {[%clk 0:00:11.9]} 46... Rb2 {[%clk
0:00:21.5]} 47. Rd8 {[%clk 0:00:12.9]} 47... Rb3+ {[%clk 0:00:22.3]} 48. Kg2
{[%clk 0:00:14.1]} 48... Rxa3 {[%clk 0:00:23.2]} 49. Kh3 {[%clk 0:00:15.2]}
49... f4 {[%clk 0:00:23.3]} 50. Rg8+ {[%clk 0:00:16.1]} 50... Kh6 {[%clk
0:00:24.2]} 51. Rh8+ {[%clk 0:00:16.1]} 51... Kg6 {[%clk 0:00:22.5]} 52. Rg8+
{[%clk 0:00:16.7]} 52... Kh7 {[%clk 0:00:23.5]} 53. Rg5 {[%clk 0:00:17.5]} 53...
Rxg3+ {[%clk 0:00:23.5]} 0-1